Cogmind - Beta 14 @@@ ROGUE MODE // 2024.08.22 @ 18:13:19 Player: Kio Result: Self-destructed Performance ------------- Evolutions (4) 2000 Regions Visited (13) 2600 Robots Destroyed (80) 400 Value Destroyed (2228) 2228 Prototype IDs (32) 640 Alien Tech Used (0) 0 Bonus (1082) 1082 TOTAL SCORE: 8950 Bonus ------- High Alert Combat Kills 82 Entered Garrisons 200 Used RIF Installer 500 Aligned with FarCom 300 Cogmind --------- Core Integrity 850/850 Matter 231/300 Energy 3/100 System Corruption 0% Temperature Cool (0) Movement Flying (29) Location -6/Garrison Parts ------- > --- POWER (2) -------- (None) > --- PROPULSION (5) --- VTOL Module VTOL Module VTOL Module > --- UTILITY (6) ------ Small Storage Unit Weight Redist. System Shield Generator Hacking Suite Makeshift Hacking Suite Hacking Drone Bay (1/1) > --- WEAPON (2) ------- Heavy Battle Rifle Improved Datajack > --- INVENTORY (8) ---- Light Fission Core Large Storage Unit ECM Suite Drone Bay (2/2) Drone Bay (1/2) Advanced Assault Cannon Rocket Array Ripper Peak State ------------ > --- POWER ------------ Light Deuterium Engine Light Nuclear Core > --- PROPULSION ------- Light Armored Exoskeleton Light Armored Exoskeleton > --- UTILITY ---------- Large Storage Unit Improved Targeting Computer Hacking Suite System Shield Drone Bay > --- WEAPON ----------- Advanced Assault Cannon Advanced Assault Cannon > --- INVENTORY -------- Improved Flight Unit Small Storage Unit Weight Redist. System ECM Suite Improved Medium Armor Plating Improved Medium Armor Plating Hardlight Generator Drone Bay Drone Bay Drone Bay Drone Bay Advanced Assault Cannon Grenade Launcher Improved Datajack Ripper [Rating: 49] Favorites ----------- Power Light Ion Engine Engine Light Ion Engine Power Core Light Nuclear Core Propulsion Light Treads Treads Light Treads Leg Light Armored Exoskeleton Wheel Wheel Flight Unit VTOL Module Utility Hacking Suite Device Sensor Array Storage Small Storage Unit Processor Signal Interpreter Hackware Hacking Suite Protection Improved Medium Armor Plating Weapon Light Cannon Energy Gun Precision Shock Rifle Energy Cannon Ion Burst Cannon Ballistic Gun Shotgun Ballistic Cannon Light Cannon Launcher Advanced EMP Blaster Slashing Weapon Ripper Special Melee Weapon Improved Datajack Build | -11 -10 -10 -10 -9 -8 -8 -7 -7 -7 -7 -6 -6 -6 ------- Run | Yrd Mat Min Exi Min Mat Sto Fac Low Low Zio Pro Fac Gar Slots Evolved 8 | . . . . . 4 . 2 . . . . 2 . Power 1 | . . . . . . . 1 . . . . . . Propulsion 3 | . . . . . 2 . . . . . . 1 . Utility 4 | . . . . . 2 . 1 . . . . 1 . Weapon . | . . . . . . . . . . . . . . Parts Attached 169 | 7 7 . 2 11 26 30 37 22 10 3 11 2 1 Power 14 | 1 1 . . 1 1 . 7 1 2 . . . . Engine 9 | 1 1 . . 1 1 . 5 . . . . . . Core 5 | . . . . . . . 2 1 2 . . . . Reactor . | . . . . . . . . . . . . . . Propulsion 23 | 2 . . . . 5 . 3 8 1 1 3 . . Treads 2 | 2 . . . . . . . . . . . . . Leg 5 | . . . . . 3 . 2 . . . . . . Wheel 2 | . . . . . 2 . . . . . . . . Hover . | . . . . . . . . . . . . . . Flight 14 | . . . . . . . 1 8 1 1 3 . . Utility 50 | 2 1 . 2 . 5 8 14 7 4 . 5 2 . Device 21 | 1 1 . . . . 3 5 5 2 . 2 2 . Storage 8 | 1 . . 1 . 1 2 . 1 . . 2 . . Processor 6 | . . . 1 . 2 1 2 . . . . . . Hackware 3 | . . . . . . . 2 . . . 1 . . Protection 12 | . . . . . 2 2 5 1 2 . . . . Artifact . | . . . . . . . . . . . . . . Weapon 82 | 2 5 . . 10 15 22 13 6 3 2 3 . 1 Energy Gun 13 | . . . . . 4 6 1 1 1 . . . . Energy Cannon 6 | . . . . . 2 4 . . . . . . . Ballistic Gun 8 | 2 1 . . . 3 . . . . . 2 . . Ballistic Cannon 21 | . 4 . . 5 1 5 6 . . . . . . Launcher 12 | . . . . 1 3 2 3 2 . 1 . . . Special Weapon . | . . . . . . . . . . . . . . Impact Weapon . | . . . . . . . . . . . . . . Slashing Weapon 17 | . . . . 4 2 4 3 3 1 . . . . Piercing Weapon . | . . . . . . . . . . . . . . Special Melee Weapon 5 | . . . . . . 1 . . 1 1 1 . 1 Unidentified Prototypes 9 | . . . . . 1 3 2 1 . 1 . 1 . Corrupted Parts 1 | . . . . . . 1 . . . . . . . System Corruption 1 | . . . . . . 1 . . . . . . . Parts Lost 13 | . . . . . 1 2 2 3 . . 4 . 1 Power 6 | . . . . . . . 2 2 . . 1 . 1 Propulsion 3 | . . . . . . . . . . . 3 . . Utility 3 | . . . . . 1 2 . . . . . . . Weapon 1 | . . . . . . . . 1 . . . . . Highest Loss Streak 4 | . . . . . 1 2 1 2 . . 4 . 1 To Critical Strikes . | . . . . . . . . . . . . . . Average Slot Usage (%) 92 | . 99 100 100 100 91 80 80 95 98 100 88 81 83 Engine 9 | . 13 14 14 14 9 9 8 10 . . . . . Core 2 | . . . . . . . 2 2 13 15 8 6 4 Treads 11 | . 28 28 28 28 10 . . . . . . . . Leg 6 | . . . . . 11 18 14 . . . . . . Flight 6 | . . . . . . . . 28 30 30 29 26 24 Device 8 | . 14 14 10 . . 9 5 13 14 15 15 14 20 Storage 10 | . 14 14 14 14 9 12 7 7 7 7 7 6 6 Processor 5 | . . . 3 14 23 4 5 . . . . . . Hackware 5 | . . . . . . . 14 15 15 15 15 13 13 Protection 2 | . . . . . 3 9 3 1 . . . . . Energy Gun 1 | . . . . . 4 6 . 5 1 . . . . Ballistic Gun 1 | . 7 . . . 3 . . . . . 1 6 6 Ballistic Cannon 13 | . 20 28 28 25 5 3 13 . . . . . . Slashing Weapon 1 | . . . . 2 . 1 . 1 6 7 7 6 1 Peak Build Rating 49 | 8 8 8 8 11 42 41 49 48 41 46 45 43 43 Average Rating 26 | 5 7 7 8 9 27 38 44 39 40 42 35 38 42 On Entrance 26 | . 8 8 8 8 9 40 37 48 33 41 44 37 43 Naked Turns . | . . . . . . . . . . . . . . Heaviest Build 54 | 14 17 17 22 21 45 47 54 41 25 25 25 23 20 Greatest Support 66 | 40 40 40 40 40 60 60 66 60 25 27 27 23 23 Greatest Overweight (x) 3 | . . . . . 2 . 3 . . . 1 . . Average Overweight (x) . | . . . . . . . . . . . . . . Largest Inventory Capacity 15 | 8 8 8 10 10 15 15 15 15 8 8 15 8 8 Average Capacity 11 | 7 8 8 9 10 12 15 15 8 8 8 8 8 8 Most Carried 15 | 8 8 8 10 10 15 15 15 15 8 8 8 8 8 Average Carried 10 | 5 7 7 9 9 12 14 14 8 7 7 7 7 8 Final Capacity 15 | 8 8 8 10 10 15 15 15 8 8 8 8 8 8 Final Carried 15 | 8 8 8 10 10 14 15 15 8 8 8 6 8 8 Class Distribution -------------------- 61% | Mutant 18% | Hacker-Mutant 11% | Scavenger-Sprinter 8% | Hacker-Sprinter Dominant Class ---------------- Mutant | -10/Materials Mutant | -10/Mines Mutant | -10/Exiles Mutant | -9/Mines Mutant | -8/Materials Mutant | -8/Storage Hacker-Mutant | -7/Factory Hacker-Sprinter | -7/Lower Caves Scavenger-Sprinter | -7/Lower Caves Scavenger-Sprinter | -7/Zion Scavenger-Sprinter | -6/Proximity Caves Scavenger-Sprinter | -6/Factory Scavenger-Sprinter | -6/Garrison Resources | -11 -10 -10 -10 -9 -8 -8 -7 -7 -7 -7 -6 -6 -6 ----------- Run | Yrd Mat Min Exi Min Mat Sto Fac Low Low Zio Pro Fac Gar Matter Collected 3282 | 326 584 3 23 128 203 404 1115 221 165 30 80 . . Remotely . | . . . . . . . . . . . . . . Salvage Created 2416 | 147 472 . . 193 190 196 977 111 76 . 54 . . Parts 153 | 8 39 . . 11 6 14 55 9 7 . 4 . . Haulers Intercepted 1 | . 1 . . . . . . . . . . . . Recyclers Shooed 9 | . 6 1 . . . . 2 . . . . . . Parts Field Recycled . | . . . . . . . . . . . . . . Retrieved Matter . | . . . . . . . . . . . . . . Parts Self-Destructed 13 | . . . . . . . . 7 4 . 2 . . Prevented 2 | . . . . . . . . 1 1 . . . . Kills | -11 -10 -10 -10 -9 -8 -8 -7 -7 -7 -7 -6 -6 -6 ------- Run | Yrd Mat Min Exi Min Mat Sto Fac Low Low Zio Pro Fac Gar Combat Hostiles Destroyed 56 | . 11 . . 7 4 4 20 5 3 . 2 . . Melee 8 | . . . . 4 . . 2 . . . 2 . . Guns 7 | . . . . . 3 1 . 1 2 . . . . Cannons 35 | . 11 . . 3 . 3 16 2 . . . . . AOE 5 | . . . . . . . 2 2 1 . . . . Classes Destroyed 12 | 2 6 . . 1 1 1 1 . . . . . . Worker 5 | . 2 . . 1 . . 2 . . . . . . Builder 4 | . 1 . . . . 1 2 . . . . . . Tunneler 3 | 3 . . . . . . . . . . . . . Hauler 1 | . 1 . . . . . . . . . . . . Recycler 7 | 1 2 . . 1 . . 3 . . . . . . Watcher 6 | . 3 . . . . . 3 . . . . . . Swarmer 22 | . 6 . . 4 . . 2 5 3 . 2 . . Grunt 24 | . 5 . . . 3 2 14 . . . . . . Sentry 3 | . . . . . 1 1 1 . . . . . . Hunter 2 | . . . . . . 1 1 . . . . . . Programmer 2 | . . . . . . . 2 . . . . . . Assembled 2 | . . . . 2 . . . . . . . . . Best Kill Streak 8 | 2 7 . . 4 3 2 8 3 2 . 2 . . Combat Bots Only 4 | . 3 . . 4 3 2 4 3 2 . 2 . . Max Kills in Single Turn 2 | 1 1 . . 1 1 1 2 2 1 . 1 . . Gunslinging . | . . . . . . . . . . . . . . Exploded 1 | . . . . . . . 1 1 1 . . . . Melee 1 | . . . . 1 . . 1 . . . 1 . . Uniques/NPCs Destroyed 1 | . . . . 1 . . . . . . . . . YI-UF0 (-9/Mines) Combat | -11 -10 -10 -10 -9 -8 -8 -7 -7 -7 -7 -6 -6 -6 -------- Run | Yrd Mat Min Exi Min Mat Sto Fac Low Low Zio Pro Fac Gar Hostile Shots Fired 480 | . 72 . . 28 40 11 189 72 11 . 46 . 11 Missed 188 | . 23 . . 10 14 3 69 40 2 . 21 . 6 Damage Taken 3949 | . 461 . . 187 502 455 1385 393 138 . 375 . 53 Core 593 | . 69 . . 23 116 63 107 126 49 . 40 . . Absorbed by Shields 345 | . . . . . . . 328 . . . . . 17 Regen/Repaired (Parts) 16 | . . . . . . 16 . . . . . . . Core Remaining (%) 71 | 100 . . . 63 . 67 . . . . 54 . . Volleys Fired 197 | 14 60 1 . 6 19 7 64 12 6 . . 7 1 Largest 2 | 2 2 2 . 2 2 2 2 2 2 . . 1 1 Hottest 155 | 40 70 70 . 70 110 155 96 88 116 . . 33 33 Shots Fired 368 | 28 120 2 . 11 36 13 121 21 8 . . 7 1 Gun 93 | 28 8 . . . 24 5 6 9 5 . . 7 1 Cannon 252 | . 112 2 . 11 6 6 109 6 . . . . . Launcher 23 | . . . . . 6 2 6 6 3 . . . . Special . | . . . . . . . . . . . . . . Kinetic 295 | 28 120 2 . 11 10 1 109 6 . . . 7 1 Thermal 27 | . . . . . 2 5 6 9 5 . . . . Explosive 8 | . . . . . 6 2 . . . . . . . Electromagnetic 38 | . . . . . 18 5 6 6 3 . . . . Robot Hit Streak 22 | 9 11 1 . 2 22 3 18 8 4 . . 1 2 Robot Miss Streak 6 | 2 6 1 . 2 3 5 3 3 5 . . 2 . Penetration Max . | . . . . . . . . . . . . . . Secondary Targets . | . . . . . . . . . . . . . . Shots Hit Robots 215 | 22 55 1 . 10 24 7 71 13 6 . 2 3 1 Core Hits 112 | 6 20 . . 8 11 8 43 8 6 . 2 . . Critical Kills . | . . . . . . . . . . . . . . Critical Parts Destroyed 1 | 1 . . . . . . . . . . . . . Critical Strikes 9 | 1 6 . . . . . 1 1 . . . . . Destroy 1 | 1 . . . . . . . . . . . . . Blast 8 | . 6 . . . . . 1 1 . . . . . Melee Attacks 56 | . . . . 19 5 14 5 1 . . 10 . 2 Impact . | . . . . . . . . . . . . . . Slashing 52 | . . . . 19 5 12 5 1 . . 10 . . Piercing . | . . . . . . . . . . . . . . Sneak Attacks 3 | . . . . 1 . 1 1 . . . . . . Combat Hostiles . | . . . . . . . . . . . . . . Follow-up Attacks . | . . . . . . . . . . . . . . Damage Inflicted 5741 | 240 983 19 . 339 621 387 2481 370 154 . 63 56 28 Guns 1037 | 240 58 . . . 400 62 49 65 79 . . 56 28 Cannons 2956 | . 925 19 . 88 34 104 1676 110 . . . . . Explosions 1159 | . . . . . 185 135 569 195 75 . . . . Melee 543 | . . . . 251 . 86 143 . . . 63 . . Ramming 46 | . . . . . 2 . 44 . . . . . . Kinetic 3318 | 240 983 19 . 88 118 . 1676 110 . . . 56 28 Thermal 419 | . . . . . . 104 118 118 79 . . . . Explosive 320 | . . . . . 185 135 . . . . . . . Electromagnetic 1095 | . . . . . 316 62 500 142 75 . . . . Impact . | . . . . . . . . . . . . . . Slashing 543 | . . . . 251 . 86 143 . . . 63 . . Piercing . | . . . . . . . . . . . . . . Highest Corruption 7 | . . . . . . 7 . . . . . . . Average Corruption 5 | . . . . . . 5 . . . . . . . Corruption Purged . | . . . . . . . . . . . . . . Corruption Blocked . | . . . . . . . . . . . . . . Effects 20 | . . . . . . 20 . . . . . . . Message Errors 1 | . . . . . . 1 . . . . . . . Matter Fused 5 | . . . . . . 5 . . . . . . . Heat Flow Errors 3 | . . . . . . 3 . . . . . . . Energy Discharges 6 | . . . . . . 6 . . . . . . . Data Loss (minor) 1 | . . . . . . 1 . . . . . . . Data Loss (major) 3 | . . . . . . 3 . . . . . . . Alerts 1 | . . . . . . 1 . . . . . . . Overload Shots . | . . . . . . . . . . . . . . Overflow Damage 268 | . 37 . . 42 . 56 133 . . . . . . Projectiles 87 | . 37 . . . . . 50 . . . . . . Explosions 83 | . . . . . . . 83 . . . . . . Melee 98 | . . . . 42 . 56 . . . . . . . Knockbacks 31 | . 15 . . 1 1 . 14 . . . . . . Impact . | . . . . . . . . . . . . . . Kinetic 26 | . 13 . . 1 1 . 11 . . . . . . Secondary 5 | . 2 . . . . . 3 . . . . . . Self-Inflicted Damage 173 | . . . . . . . 160 13 . . . . . Shots 5 | . . . . . . . 4 1 . . . . . Rammed . | . . . . . . . . . . . . . . Targets Rammed 10 | . . . . . 1 . 9 . . . . . . Kicked 10 | . . . . . 1 . 9 . . . . . . Crushed . | . . . . . . . . . . . . . . Highest Temperature 229 | . 117 9 . 18 117 221 229 108 104 14 14 . 2 Average Temperature 40 | . 27 6 . 9 61 76 75 41 16 5 6 . 2 Received Heat Transfer 972 | . 141 . . . 180 54 549 39 . . 9 . . Siege Activations . | . . . . . . . . . . . . . . Robots Corrupted 1 | . . . . . 1 . . . . . . . . Combat Hostiles 1 | . . . . . 1 . . . . . . . . Parts Fried 5 | . . . . . 3 . 2 . . . . . . Impact Corruptions . | . . . . . . . . . . . . . . Robots Melted . | . . . . . . . . . . . . . . Combat Hostiles . | . . . . . . . . . . . . . . Parts Melted . | . . . . . . . . . . . . . . Heat Transferred 783 | . . . . . . 125 248 235 175 . . . . Parts Sabotaged . | . . . . . . . . . . . . . . Parts Stolen . | . . . . . . . . . . . . . . Parts Stripped . | . . . . . . . . . . . . . . Power Chain Reactions 1 | . . . . . . . . 1 . . . . . Alert | -11 -10 -10 -10 -9 -8 -8 -7 -7 -7 -7 -6 -6 -6 ------- Run | Yrd Mat Min Exi Min Mat Sto Fac Low Low Zio Pro Fac Gar Peak Influence 541 | 20 255 79 . 101 117 191 541 . . . . 74 51 Initial 79 | . 13 79 . . . 44 . . . . . 56 51 Average 72 | 11 114 49 . 30 21 66 123 . . . . 57 49 Maximum Alert Level 2 | . 1 . . . . . 2 . . . . . . Low Security (%) 88 | 100 74 100 . 100 100 100 70 . . . . 100 100 Level 1 7 | . 25 . . . . . 15 . . . . . . Level 2 3 | . . . . . . . 13 . . . . . . Level 3 . | . . . . . . . . . . . . . . Level 4 . | . . . . . . . . . . . . . . Level 5 . | . . . . . . . . . . . . . . High Security . | . . . . . . . . . . . . . . Max Security . | . . . . . . . . . . . . . . Squads Dispatched 19 | . 3 . . . 5 1 9 . . . . 1 . Investigation 6 | . 2 . . . . 1 2 . . . . 1 . Extermination 2 | . . . . . . . 2 . . . . . . Reinforcement 11 | . 1 . . . 5 . 5 . . . . . . Assault . | . . . . . . . . . . . . . . Garrison . | . . . . . . . . . . . . . . Intercept . | . . . . . . . . . . . . . . Searches Triggered . | . . . . . . . . . . . . . . Construction Impeded 3 | . . . . . . . 3 . . . . . . Haulers Reinforced 1 | . . . . . . . 1 . . . . . . Active Scanning Responses . | . . . . . . . . . . . . . . Cargo Convoy Interrupts . | . . . . . . . . . . . . . . Stealth | -11 -10 -10 -10 -9 -8 -8 -7 -7 -7 -7 -6 -6 -6 --------- Run | Yrd Mat Min Exi Min Mat Sto Fac Low Low Zio Pro Fac Gar Distress Signals 3 | . 2 . . . . . 1 . . . . . . Communications Jammed . | . . . . . . . . . . . . . . Distress Signals . | . . . . . . . . . . . . . . Times Spotted 100 | . 20 . . 7 9 8 28 12 3 . 9 . 4 Peak Tracking Total 7 | . 4 . . 4 3 4 7 7 2 . 3 . 4 Tactical Retreats 11 | . 2 . . . . . 2 3 . . 4 . . Traps | -11 -10 -10 -10 -9 -8 -8 -7 -7 -7 -7 -6 -6 -6 ------- Run | Yrd Mat Min Exi Min Mat Sto Fac Low Low Zio Pro Fac Gar Traps Triggered 1 | . 1 . . . . . . . . . . . . Indirectly . | . . . . . . . . . . . . . . Trap Hack Attempts . | . . . . . . . . . . . . . . Triggered . | . . . . . . . . . . . . . . Disarmed . | . . . . . . . . . . . . . . Reprogrammed . | . . . . . . . . . . . . . . Reused . | . . . . . . . . . . . . . . Traps Extracted . | . . . . . . . . . . . . . . Installed . | . . . . . . . . . . . . . . Triggered 1 | . . . . . . . . . 1 . . . . Machines | -11 -10 -10 -10 -9 -8 -8 -7 -7 -7 -7 -6 -6 -6 ---------- Run | Yrd Mat Min Exi Min Mat Sto Fac Low Low Zio Pro Fac Gar Machines Disabled 15 | . 2 . . . . 6 7 . . . . . . Max in Single Turn 5 | . 1 . . . . 2 5 . . . . . . Machines Repaired . | . . . . . . . . . . . . . . Machines Dismantled . | . . . . . . . . . . . . . . Machines Sabotaged . | . . . . . . . . . . . . . . Overloaded Fab Kills . | . . . . . . . . . . . . . . Hacking | -11 -10 -10 -10 -9 -8 -8 -7 -7 -7 -7 -6 -6 -6 --------- Run | Yrd Mat Min Exi Min Mat Sto Fac Low Low Zio Pro Fac Gar Machines Accessed 19 | . 2 . 2 . 2 5 5 1 . . . 1 1 Terminals 12 | . 2 . . . 2 4 3 . . . . . 1 Fabricators 1 | . . . . . . . 1 . . . . . . Repair Stations 1 | . . . . . . 1 . . . . . . . Recycling Units . | . . . . . . . . . . . . . . Scanalyzers . | . . . . . . . . . . . . . . Garrison Access 2 | . . . . . . . 1 . . . . 1 . Total Hacks 69 | . 7 . 24 . 4 15 13 1 . . . 3 2 Successful 45 | . 2 . 24 . 2 10 4 1 . . . 1 1 Failed 24 | . 5 . . . 2 5 9 . . . . 2 1 Catastrophic 6 | . . . . . 1 2 3 . . . . . . Database Lockouts . | . . . . . . . . . . . . . . Manual 17 | . 3 . 1 . 4 7 2 . . . . . . Terminals 31 | . 7 . . . 4 10 8 . . . . . 2 Fabricators 3 | . . . . . . . 3 . . . . . . Repair Stations 5 | . . . . . . 5 . . . . . . . Recycling Units . | . . . . . . . . . . . . . . Scanalyzers . | . . . . . . . . . . . . . . Garrison Access 5 | . . . . . . . 2 . . . . 3 . Terminal Hacks 38 | . 2 . 24 . 2 6 2 1 . . . . 1 Record 23 | . . . 23 . . . . . . . . . . Part Schematic 3 | . . . . . 1 2 . . . . . . . Open Door 3 | . . . . . . 2 . 1 . . . . . Open DSF 1 | . . . . . . . 1 . . . . . . Branch Access Points 4 | . 1 . . . 1 1 1 . . . . . . Emergency Access Points 1 | . . . . . . . . . . . . . 1 Alert Level 1 | . . . . . . 1 . . . . . . . Transport Status 1 | . 1 . . . . . . . . . . . . Derelict Proto ID Bank 1 | . . . 1 . . . . . . . . . . Fabricator Hacks 2 | . . . . . . . 2 . . . . . . Load Schematic 1 | . . . . . . . 1 . . . . . . Build 1 | . . . . . . . 1 . . . . . . Repair Station Hacks 4 | . . . . . . 4 . . . . . . . Scan Component 2 | . . . . . . 2 . . . . . . . Repair 2 | . . . . . . 2 . . . . . . . Recycling Unit Hacks . | . . . . . . . . . . . . . . Scanalyzer . | . . . . . . . . . . . . . . Garrison Access Hacks 1 | . . . . . . . . . . . . 1 . Unlock Access 1 | . . . . . . . . . . . . 1 . Unauthorized Hacks . | . . . . . . . . . . . . . . Terminals . | . . . . . . . . . . . . . . Fabricators . | . . . . . . . . . . . . . . Repair Stations . | . . . . . . . . . . . . . . Recycling Units . | . . . . . . . . . . . . . . Scanalyzers . | . . . . . . . . . . . . . . Garrison Access . | . . . . . . . . . . . . . . Data Cores Recovered . | . . . . . . . . . . . . . . Used . | . . . . . . . . . . . . . . Hacking Detections 14 | . 2 . . . 2 4 5 . . . . 1 . Full Trace Events 6 | . 1 . . . . 2 2 . . . . 1 . Feedback Events . | . . . . . . . . . . . . . . Feedback Blocked . | . . . . . . . . . . . . . . Robot Schematics Acquired . | . . . . . . . . . . . . . . Robots Built . | . . . . . . . . . . . . . . Authchips . | . . . . . . . . . . . . . . Time . | . . . . . . . . . . . . . . Total Robot Build Rating . | . . . . . . . . . . . . . . Part Schematics Acquired 3 | . . . . . 1 2 . . . . . . . Parts Built 2 | . . . . . . . 2 . . . . . . Authchips . | . . . . . . . . . . . . . . Time 31 | . . . . . . . 31 . . . . . . Total Part Build Rating 4 | . . . . . . . 4 . . . . . . Parts Repaired 2 | . . . . . . 2 . . . . . . . Time 70 | . . . . . . 70 . . . . . . . Parts Recycled . | . . . . . . . . . . . . . . Recycled Matter . | . . . . . . . . . . . . . . Retrieved Matter . | . . . . . . . . . . . . . . Retrieved Components . | . . . . . . . . . . . . . . Parts Scanalyzed . | . . . . . . . . . . . . . . Part Schematics Acquired . | . . . . . . . . . . . . . . Parts Damaged . | . . . . . . . . . . . . . . Bothacking | -11 -10 -10 -10 -9 -8 -8 -7 -7 -7 -7 -6 -6 -6 ------------ Run | Yrd Mat Min Exi Min Mat Sto Fac Low Low Zio Pro Fac Gar Used RIF Installer 1 | . . . . . . . . . . . . . 1 Robots Hacked . | . . . . . . . . . . . . . . Non-combat . | . . . . . . . . . . . . . . Combat . | . . . . . . . . . . . . . . Robot Hacks Applied . | . . . . . . . . . . . . . . Relay Couplers Released . | . . . . . . . . . . . . . . Fabnet Peak Effective % . | . . . . . . . . . . . . . . Robots Rewired . | . . . . . . . . . . . . . . Allies Hacked . | . . . . . . . . . . . . . . Hacks Repelled . | . . . . . . . . . . . . . . Allies | -11 -10 -10 -10 -9 -8 -8 -7 -7 -7 -7 -6 -6 -6 -------- Run | Yrd Mat Min Exi Min Mat Sto Fac Low Low Zio Pro Fac Gar Total Allies . | . . . . . . . . . . . . . . Largest Group . | . . . . . . . . . . . . . . Highest-Rated Group . | . . . . . . . . . . . . . . Highest-Rated Ally . | . . . . . . . . . . . . . . Total Orders 12 | . . . . . . . 2 4 3 2 1 . . EXPLORE 9 | . . . . . . . 2 4 1 1 1 . . RETURN 3 | . . . . . . . . . 2 1 . . . Ally Attacks . | . . . . . . . . . . . . . . Total Damage . | . . . . . . . . . . . . . . Kills . | . . . . . . . . . . . . . . Allies Corrupted . | . . . . . . . . . . . . . . Allies Melted . | . . . . . . . . . . . . . . Intel | -11 -10 -10 -10 -9 -8 -8 -7 -7 -7 -7 -6 -6 -6 ------- Run | Yrd Mat Min Exi Min Mat Sto Fac Low Low Zio Pro Fac Gar Robot Analysis Total . | . . . . . . . . . . . . . . Derelict Logs Recovered 6 | . . 2 . 1 . . . 1 1 . 1 . . Drone Launches 9 | . . . . . . . 2 4 1 1 1 . . Drone Recoveries 5 | . . . . . . . 1 2 1 1 . . . Exploration | -11 -10 -10 -10 -9 -8 -8 -7 -7 -7 -7 -6 -6 -6 ------------- Run | Yrd Mat Min Exi Min Mat Sto Fac Low Low Zio Pro Fac Gar Turns Passed 9330 | 166 663 643 1394 831 955 1020 1757 485 455 516 350 48 47 Spaces Moved 7250 | 71 258 397 868 457 299 513 864 1029 528 668 1059 89 150 Core 5 | 5 . . . . . . . . . . . . . Treads 2072 | 66 258 397 868 457 26 . . . . . . . . Legs 1467 | . . . . . 84 513 863 7 . . . . . Wheels 189 | . . . . . 189 . . . . . . . . Hover . | . . . . . . . . . . . . . . Flight 3517 | . . . . . . . 1 1022 528 668 1059 89 150 Fastest Speed 27 | 50 160 160 160 160 90 140 140 27 27 27 27 27 27 Average Speed 90 | 152 160 160 160 160 117 140 140 27 27 27 27 27 27 Slowest Speed 250 | 160 160 160 160 160 250 140 250 140 27 28 109 27 29 Overloaded Moves . | . . . . . . . . . . . . . . Propulsion Burnouts . | . . . . . . . . . . . . . . Robots Hopped 3 | . . . . . . . . . . . 3 . . Cave-ins Triggered 1 | . . . . . . 1 . . . . . . . Exploration Rate (%) 54 | 4 39 71 93 76 23 38 21 97 91 86 98 2 25 Regions Visited 13 Branch Regions 8 Pre-discovered Areas 5 | . . 3 1 . . . . . . . 1 . . Known Exits Taken 6 | . 1 . 1 1 1 . 1 . . . . 1 . Unknown Exits Taken 7 | 1 . 1 . . . 1 . 1 1 1 1 . . Scrap Searched 16 | . . . . 1 . . . 3 4 4 4 . . Spaces Dug 10 | . . . . 3 5 1 . 1 . . . . . Terrain Destroyed 114 | . . . . 3 22 11 72 6 . . . . . Melee 10 | . . . . 3 5 1 . 1 . . . . . Projectile 14 | . . . . . . 1 12 1 . . . . . AOE 90 | . . . . . 17 9 60 4 . . . . . Terrain Rammed . | . . . . . . . . . . . . . . Walls Destroyed . | . . . . . . . . . . . . . . Machines Disabled . | . . . . . . . . . . . . . . Actions | -11 -10 -10 -10 -9 -8 -8 -7 -7 -7 -7 -6 -6 -6 --------- Run | Yrd Mat Min Exi Min Mat Sto Fac Low Low Zio Pro Fac Gar Total 9580 | 101 393 403 873 513 856 780 1273 1203 829 999 1098 104 155 Wait 1707 | . 45 4 1 15 479 162 260 122 278 320 17 4 . Move 7233 | 70 257 396 867 456 299 512 863 1028 527 667 1052 89 150 Hop 3 | . . . . . . . . . . . 3 . . Pick Up 96 | 9 11 1 2 3 14 29 12 5 3 4 1 2 . Fast Attach 26 | 7 . . . . 5 1 6 2 2 . 2 1 . Attach 22 | . 2 . . . 4 1 4 6 1 . 4 . . Detach 10 | . . . . . 2 . 4 2 . . 2 . . Swap 122 | . 5 . 2 11 17 28 27 14 7 3 6 1 1 Drop 99 | 1 13 1 1 3 12 26 19 11 5 5 1 . 1 Fire 197 | 14 60 1 . 6 19 7 64 12 6 . . 7 1 Melee 56 | . . . . 19 5 14 5 1 . . 10 . 2 Ram . | . . . . . . . . . . . . . . Kick 9 | . . . . . . . 9 . . . . . . Crush . | . . . . . . . . . . . . . . Escape Stasis . | . . . . . . . . . . . . . . Rewire . | . . . . . . . . . . . . . . Trap . | . . . . . . . . . . . . . . Miscellaneous . | . . . . . . . . . . . . . . Route ------- -11/Scrapyard -10/Materials -10/Mines (discovered 2 exits: [*Mat] / *Exi) -10/Exiles (discovered 2 exits: *Min x2) -9/Mines -8/Materials (discovered 2 exits: *Sto x2) -8/Storage (discovered 2 exits: *Fac / Rec) -7/Factory (discovered 2 exits: *Low x2) -7/Lower Caves -7/Lower Caves (discovered 2 exits: *Fac / [*Zio]) -7/Zion -6/Proximity Caves -6/Factory (discovered 2 exits: Fac / Gar) -6/Garrison History --------- Turn | Location | Event 12 | -11/Scrapyard | Discovered new exit (range 13) 167 | -11/Scrapyard | Entered Materials 308 | -10/Materials | Build established: Mutant 396 | -10/Materials | Discovered new exit (range 15) 654 | -10/Materials | Identified exit to Mines 830 | -10/Materials | Entered Mines 831 | -10/Mines | Learned location of Storage (-8) 842 | -10/Mines | Met a Derelict bent on vengeance 925 | -10/Mines | A weapon hastily lodged in a ceiling crevice suddenly fell to the ground 1069 | -10/Mines | Discovered new exit (range 9) 1463 | -10/Mines | Deemed a non-threat by the Exiles lab entrance 1465 | -10/Mines | Discovered new exit (range 5) 1473 | -10/Mines | Entered Exiles 1505 | -10/Exiles | Discovered new exit (range 14) 1545 | -10/Exiles | Met 8R-AWN 1569 | -10/Exiles | Met EX-HEX 1667 | -10/Exiles | Met EX-DEC 1703 | -10/Exiles | Visited The Gauntlet 1931 | -10/Exiles | Learned location of Zion (-7) 1990 | -10/Exiles | Discovered new exit (range 11) 2099 | -10/Exiles | Met EX-BIN 2256 | -10/Exiles | Aligned with FarCom system 2257 | -10/Exiles | Given EX-Vault access code 2294 | -10/Exiles | Opened EX-Vault 2308 | -10/Exiles | Found Modified TNC 2341 | -10/Exiles | Warned to stay clear of 0b10 Research branches 2477 | -10/Exiles | Identified exit to Mines 2867 | -10/Exiles | Left Exiles lab with Modified TNC 2867 | -10/Exiles | Entered Mines 3157 | -9/Mines | YI-UF0 nonchalantly dropped a Grenade Launcher on the ground 3189 | -9/Mines | Learned Materials terminal intel 3226 | -9/Mines | Excavation squad dispatched 3226 | -9/Mines | A large section of the Mines collapsed 3273 | -9/Mines | Found a damaged Exp. Sensor Array with a note attached 3476 | -9/Mines | Excavation squad dispatched 3661 | -9/Mines | Destroyed YI-UF0 3680 | -9/Mines | Discovered new exit (range 10) 3695 | -9/Mines | Identified exit to Materials 3698 | -9/Mines | Entered Materials 3698 | -8/Materials | Evolved 4 slots: Propulsion x2, Utility x2 3699 | -8/Materials | Loaded intel: 12 terminal locations 3983 | -8/Materials | Identified exit to Storage 4653 | -8/Materials | Entered Storage 4840 | -8/Storage | Identified exit to Recycling 4937 | -8/Storage | Crushed by falling debris 5370 | -8/Storage | Repaired Imp. Medium Armor Plating 5396 | -8/Storage | Repaired Grenade Launcher 5408 | -8/Storage | Discovered new exit (range 13) 5673 | -8/Storage | Entered Factory 5673 | -7/Factory | Evolved 2 slots: Power x1, Utility x1 6076 | -7/Factory | Build established: Hacker-Mutant 6519 | -7/Factory | Fabricated VTOL Module? 6982 | -7/Factory | Identified exit to Lower Caves 7430 | -7/Factory | Entered Lower Caves 7617 | -7/Lower Caves | Attracted the attention of an 0b10 outpost 7707 | -7/Lower Caves | Spotted B-75 Beast 7751 | -7/Lower Caves | Build established: Hacker-Sprinter 7841 | -7/Lower Caves | Attracted the attention of an 0b10 checkpoint 7877 | -7/Lower Caves | Encountered a Warlord checkpoint 7877 | -7/Lower Caves | Learned 4 Factory zone layouts 7879 | -7/Lower Caves | Discovered new exit (range 3) 7915 | -7/Lower Caves | Entered another Lower Caves area 7916 | -7/Lower Caves | Encountered a Warlord checkpoint 7945 | -7/Lower Caves | Learned location of 1 exit from Factory 8028 | -7/Lower Caves | Discovered new exit (range 19) 8202 | -7/Lower Caves | Discovered new exit (range 139) 8307 | -7/Lower Caves | Build established: Scavenger-Sprinter 8370 | -7/Lower Caves | Entered Zion 8397 | -7/Zion | Discovered new exit (range 18) 8399 | -7/Zion | Given the Hacking Drone Bay 8405 | -7/Zion | Found Prototype Device 8761 | -7/Zion | Found Prototype Launcher 8761 | -7/Zion | Identified Rocket Array 8803 | -7/Zion | Given A8's code to call for help 8811 | -7/Zion | Found Relay Coupler [Programmer] 8886 | -7/Zion | Entered Proximity Caves 9006 | -6/Proximity Caves | Lost 4 parts (1p3n) 9186 | -6/Proximity Caves | Discovered new exit (range 4) 9236 | -6/Proximity Caves | Entered Factory 9236 | -6/Factory | Evolved 2 slots: Propulsion x1, Utility x1 9237 | -6/Factory | Identified exit to Factory 9276 | -6/Factory | Identified Hacking Drone Bay 9280 | -6/Factory | Identified exit to Garrison 9284 | -6/Factory | Entered Garrison 9289 | -6/Garrison | Installed Relay Interface Framework 9297 | -6/Garrison | Spotted B-86 Titan 9331 | -6/Garrison | Self-destructed Last Messages --------------- 09276_ Identified Hacking Drone Bay. 09280_ Connecting with Garrison Access... 09280_ Current location identified: Factory >>Unlock Access door unlocked. 09280_ EXIT=UNLOCKED: GARRISON 09280_ ALERT: Suspicious activity at Garrison Access F004. Dispatching Investigation squad. 09280_ Garrison Access under remote control. LOCATION=GARRISON GOAL=ESCAPE 09284_ Receiving FarCom transmissions... Initiating installation procedure... 09289_ Relay Interface Framework installed. 09314_ Connecting with Garrison Terminal... >>Access(Emergency) Found 48 emergency access points. Map updated. 09326_ Lgt. Nuclear Core destroyed. 09329_ Dropped Imp. Flight Unit. Map ----- +----------------------------------------------------+ | ???????????????????????????????????????? | | #########??????????????????????????????? | | #??????????????????????????????? | | #??????????????????????????????? | | #??????????????????????????????? | | #+### #??????????????????????????????? | | ????+ +?????+????????????????????????? | | ???## #??????????????????????????????? | | ???#T #??????????????????????????????? | | ???## #??????????????????????????????? | | ????# #??????????????????????????????? | | ????# #####+## #????????? "?????????? | | ????# #????????? ""????????? | | ????# #????????? ?????????? | | ????# ####"""####???????? ?????????? | | ????# #???sss???????????? "?????????? | | ????# #?????????????????? "?????????? | | ????# #?????????????????? "?????????? | | ????# #???????????????""" ""????????? | | ????# #??????????????? ?????????? | | ????# #???????????????# ??????????? | | ????# #???????????????# #???????????? | | ????# ################# ####????????? | | ????# #????????? | | ????# sss #????????? | | ????# =@s #????????? | | ????# #################### #????????? | | ????# #????????????????????? #????????? | | ????# #???????????????????????????????? | | ???? #???????????????????????????????? | | ??? #???????????????????????????????? | | ??#####????????????????????????????????? | | ???????????????????????????????????????? | | ???????????????????????????????????????? | | ???????????????????????????????????????? | | ???????????????????????????????????????? | | ???????????????????????????????????????? | | ???????????????????????????????????????? | | ???????????????????????????????????????? | | ???????????????????????????????????????? | | ???????????????????????????????????????? | | ???????????????????????????????????????? | | ???????????????????????????????????????? | | ???????????????????????????????????????? | | ???????????????????????????????????????? | | ???????????????????????????????????????? | | ???????????????????????????????????????? | | ???????????????????????????????????????? | | | | | +----------------------------------------------------+ Best States ------------- Heat Dissipation 48 Energy Generation 23 Energy Capacity 250 Matter Stores 383 Matter Capacity 500 Sight Range 16 Robot Scan Range 14 Terrain Scan Density 10 ECM Strength 1 Additional Mass Support 6 Base Temperature (-) 100 Armor Coverage 450 Power Shielding 66 Evasion (%) 64 Targeting Accuracy 6 Recoil Reduction 2 Salvage Targeting 2 Offensive Hacking 21 Defensive Hacking 10 Item Schematics ----------------- VTOL Module | -8/Materials | Hacked Med. Storage Unit | -8/Storage | Hacked Hacking Suite | -8/Storage | Hacked Robot Schematics ------------------ None Fabricated ------------ VTOL Module | x2 | -7/Factory Alien Tech Used ----------------- None Achievements -------------- Part-time Mechanic Challenges ------------ None Game ------ Seed TacticalLongswordClaws Manual? 0 Play Time 02:40:08 Cumulative 19.7 hours Start 2024.08.21 @ 19:40:23 End 2024.08.22 @ 18:13:19 Sessions 2 Manual Loads 0 Difficulty Rogue Special Mode None Game No. 11 Rogue 11 Adventurer 0 Explorer 0 Win Type - Total 0 Types 0/0/0/0/0/0/0/0/0 Lore% 10 Gallery% 19 Achievement% 17 Wizard Run 0 Options --------- Layout 1 ASCII 0 Keyboard 1 Movement Vi Keybinds 0 Fullscreen 1 Font 16/SmallcapsGlow Map View 55x38 Zoom Use 0% Tactical HUD 1 Map Filters NONE Filters NONE Steam 1 RUN: 846b70d1-fb61-4364-a2a9-3627adf594c5